{"text_format":"1","workbook":"xlsx","n_sheets":1,"sheets":["انسولين الهيئة"],"not_rendered":{"charts":0,"images":0,"macros":1,"external_links":0,"defined_names":0,"comments":0,"pivot_tables":0},"unopened":[],"bounds":{"document_bytes":16777216,"sheet_cells":100000,"rows_first":2000,"rows_last":500,"rows_between":2000,"halvings":0,"cell_chars":16384,"cell_head_chars":4096},"cells_cut":0,"cells_raw":0,"read":"whole","date_system":"1900"}

{"sheet":"انسولين الهيئة","index":0,"n_rows":26,"n_cols":26,"rows_kept":26,"cut":false,"hidden":false,"merged":[[1,8,1,9],[1,10,1,11],[0,0,0,11],[1,0,2,0],[1,1,2,1],[1,2,1,3],[1,4,1,5],[1,6,1,7]]}
["انسولين الهيئة"]
["اسم الصنف","الوحدة","طهطا",null,"طما",null,"المراغة",null,"جهينة",null,"منطقة طهطا"]
[null,null,"الكمية ","عدد الحالات ","الكمية ","عدد الحالات ","الكمية ","عدد الحالات ","الكمية ","عدد الحالات ","الكمية ","عدد الحالات "]
["انسولين مكستارد 100وحدة ","فيال ",null,null,null,null,null,null,null,null,{"$f":"C4+E4+G4+I4","v":0},{"$f":"D4+F4+H4+J4","v":0}]
["انسولين اتش ميكس 100وحدة ","فيال ",null,null,null,null,null,null,null,null,{"$f":"C5+E5+G5+I5","v":0},{"$f":"D5+F5+H5+J5","v":0},null,null,null,null,null,null,0,0,578,192,497,154,216,72]
[" انسيومان كومب  100وحدة ","فيال ",null,null,null,null,null,null,null,null,0,0]
["انسولينا جيت 100 وحدة","فيال ",null,null,null,null,null,null,null,null,0,0,null,null,null,null,null,null,907,267,68,23,0,0,0,0]
["انسولين لانتوس 100 وحدة","فيال ",null,null,null,null,null,null,null,null,0,0,null,null,null,null,null,null,34,2,30,3,21,3,8,2]
["انسولين هيمولين  100وحدة ","فيال ",null,null,null,null,null,null,null,null,0,0]
["انسولين رابيد بنفيل","خرطوشة",null,null,null,null,null,null,null,null,0,0]
["انسولين بازل بنفيل","خرطوشة",null,null,null,null,null,null,null,null,0,0]
["انسولين كومب بنفيل","خرطوشة",null,null,null,null,null,null,null,null,0,0]
["انسولين مكستارد بنفيل","خرطوشة",null,null,null,null,null,null,null,null,0,0,null,null,null,null,null,null,158,14,173,20,140,12,24,3]
["انسولين اكترابيد بنفيل","خرطوشة",null,null,null,null,null,null,null,null,0,0,null,null,null,null,null,null,14,3,21,4,8,1,0,0]
["انسولين انسوليتارد بنفيل","خرطوشة",null,null,null,null,null,null,null,null,0,0]
["انسولين لانتوس 100 وحدة","خرطوشة",null,null,null,null,null,null,null,null,0,0]
[null,null,null,null,null,null,null,null,null,null,0,0]
[null,null,null,null,null,null,null,null,null,null,0,0]
[null,null,null,null,null,null,null,null,null,null,0,0]
[null,null,null,null,null,null,null,null,null,null,0,0]
[null,null,null,null,null,null,null,null,null,null,0,0]
[null,null,null,null,null,null,null,null,null,null,0,0]
[null,null,null,null,null,null,null,null,null,null,0,0]
[null,null,null,null,null,null,null,null,null,null,0,0]
[null,null,null,null,null,null,null,null,null,null,0,0]
[null,null,null,null,null,null,null,null,null,null,0,0]